fUSD/lending_fUSD_20240624
["ID","MTS","AMOUNT","RATE_DAILY","PERIOD"]
[330247937,1719207033674,-1000.0,0.00019539,2]
[330247938,1719207033684,-1000.0,0.00019751,2]
[330247940,1719207033701,-666.21416207,0.000198,2]
[330247942,1719207033713,-334.88583793,0.000198,2]
[330247944,1719207033724,-2520.0,0.0002,2]
[330247946,1719207033734,-587.0,0.000202,2]
[330247947,1719207033744,-488.53281242,0.00020261,3]
[330247949,1719207033756,-401.61999996,0.00020261,3]
[330247952,1719207033767,-681.39069848,0.00020261,3]
[330247953,1719207033779,-428.45648914,0.00020261,3]
[330247954,1719207033788,-157.76,0.00020263,2]
[330247955,1719207033797,-500.0,0.00020334,2]
[330247956,1719207033807,-126.58351086,0.00020342,2]
[330247957,1719207033900,-873.41648914,0.00020342,2]
[330247958,1719207033910,-168.35,0.00020398,30]
[330247959,1719207033920,-250.0,0.00020412,2]
[330247960,1719207033930,-1000.0,0.00020415,2]
[330247961,1719207033945,-164.33192268,0.00020423,2]
[330247962,1719207033957,-384.11807732,0.00020423,2]
[330247963,1719207033969,-2306.07,0.00020427,2]
[330247964,1719207033978,-250.0,0.0002043,2]
[330247965,1719207033988,-124.41856837,0.0002043,2]
[330247966,1719207034000,-125.58143163,0.0002043,2]
[330247967,1719207034011,-183.86,0.00020443,2]
[330247968,1719207034020,-1000.0,0.00020543,2]
[330247969,1719207034030,-2907.05902124,0.00020624,2]
[330247970,1719207034040,-451.31,0.00020757,2]
[330247971,1719207034049,-196.54,0.00020902,2]
[330247972,1719207034059,-1001.1,0.00020905,2]
[330247973,1719207034068,-1345.1140086,0.00021369,3]
[330247974,1719207034080,-439.63133995,0.00021369,3]
[330247975,1719207034092,-10837.23667898,0.00021369,3]
[330247976,1719207034104,-127.21264403,0.00021369,3]
[330247977,1719207034114,-2404.95,0.0002137,2]
[330247978,1719207034124,-271.55251688,0.00021478,2]
[330247979,1719207034134,-405.3,0.00021644,2]
[330247980,1719207034144,-169.87,0.00021644,2]
[330247981,1719207034153,-150.0,0.0002165,2]
[330247982,1719207034163,-150.0,0.00021661,2]
[330247983,1719207034173,-150.0,0.00021664,2]
[330247984,1719207034182,-150.0,0.00021666,2]
[330247985,1719207034193,-150.0,0.00021668,2]
[330247986,1719207034203,-128.80132702,0.00021668,2]
[330247987,1719207034219,-21.19867298,0.00021668,2]
[330247988,1719207034230,-150.0,0.0002167,2]
[330247989,1719207034240,-150.0,0.00021673,2]
[330247990,1719207034249,-150.0,0.00021676,2]
[330247991,1719207034261,-150.0,0.00021678,2]
[330247992,1719207034270,-638.2292903,0.0002168,2]
[330247993,1719207034282,-809.73333754,0.0002168,2]
[330247994,1719207034296,-648.36570829,0.0002168,2]
[330247995,1719207034306,-150.0,0.00021681,2]
[330247996,1719207034315,-150.0,0.00021681,2]
[330247997,1719207034325,-150.0,0.00021684,2]
[330247998,1719207034334,-150.0,0.00021685,2]
[330247999,1719207034344,-150.0,0.00021688,2]
[330248000,1719207034354,-1253.5996,0.000217,2]
[330248001,1719207034363,-480.21403256,0.000217,2]
[330248002,1719207034373,-3232.559756,0.000217,2]
[330248003,1719207034383,-150.0,0.00021704,2]
[330248004,1719207034392,-150.0,0.00021707,2]
[330248005,1719207034401,-150.0,0.00021708,2]
[330248006,1719207034411,-480.21403248,0.00021709,2]
[330248007,1719207034421,-150.0,0.0002171,2]
[330248008,1719207034430,-150.0,0.00021716,2]
[330248009,1719207034443,-1301.80817815,0.00021718,2]
[330248010,1719207034455,-1930.75157785,0.00021718,2]
[330248011,1719207034465,-171.74781845,0.00021718,2]
[330248012,1719207034511,-1000.0,0.00019315,2]
[330248013,1719207034520,-308.46621403,0.00021718,2]
[330248014,1719207034530,-300.0,0.00021723,2]
[330248015,1719207034539,-57.75045066,0.00021724,2]
[330248016,1719207034552,-92.24954934,0.00021724,2]
[330248017,1719207034561,-480.21403248,0.00021727,2]
[330248018,1719207034571,-150.0,0.00021729,2]
[330248019,1719207034581,-19.41751878,0.00021729,2]
[330248020,1719207034593,-130.58248122,0.00021729,2]
[330248021,1719207034602,-2617.47728839,0.00021735,2]
[330248022,1719207034613,-567.12177962,0.00021735,2]
[330248023,1719207034624,-47.96068799,0.00021735,2]
[330248024,1719207034633,-480.21403248,0.00021736,2]
[330248025,1719207034643,-150.0,0.00021737,2]
[330248026,1719207034652,-150.0,0.00021745,2]
[330248027,1719207034662,-480.21403248,0.00021745,2]
[330248028,1719207034671,-150.0,0.00021746,2]
[330248029,1719207034680,-300.0,0.0002175,2]
[330248030,1719207034692,-439.44395089,0.00021754,2]
[330248031,1719207034703,-40.77008159,0.00021754,2]
[330248032,1719207034712,-150.0,0.00021755,2]
[330248033,1719207034722,-150.0,0.00021757,2]
[330248034,1719207034731,-150.0,0.0002176,2]
[330248035,1719207034740,-480.21403248,0.00021763,2]
[330248036,1719207034750,-150.0,0.00021767,2]
[330248037,1719207034759,-990.02946469,0.0002177,3]
[330248038,1719207034769,-314.74302252,0.0002177,2]
[330248039,1719207034778,-480.21403248,0.00021772,2]
[330248040,1719207034787,-150.0,0.00021774,2]
[330248041,1719207034797,-150.0,0.00021774,2]
[330248042,1719207034806,-150.0,0.00021775,2]
[330248043,1719207034816,-306.64439152,0.00021775,2]
[330248044,1719207034826,-150.0,0.0002178,2]
[330248045,1719207034835,-168.68431455,0.0002178,2]
[330248046,1719207034844,-219.97,0.00021781,3]
[330248047,1719207034854,-480.21403248,0.00021781,2]
[330248048,1719207034863,-1346.10527844,0.00021781,2]
[330248049,1719207034873,-150.0,0.00021783,2]
[330248050,1719207034882,-150.0,0.00021788,2]
[330248051,1719207034891,-1000.0,0.00021791,2]
[330248052,1719207034901,-150.0,0.00021792,2]
[330248053,1719207034910,-23466.55681189,0.00021799,2]
[330248054,1719207034919,-15895.5312,0.000218,2]
[330248055,1719207034929,-133743.172,0.000218,2]
[330248056,1719207034938,-408.0403,0.000218,2]
[330248057,1719207034951,-778.46194251,0.000218,2]
[330248058,1719207034960,-150.0,0.000218,2]
[330248059,1719207034969,-1500.0,0.000218,2]
[330248060,1719207034978,-3964.57243593,0.00021801,2]
[330248061,1719207034988,-778.46194245,0.00021802,2]
[330248062,1719207034997,-778.46194245,0.00021805,2]
[330248063,1719207035007,-204.26672233,0.00021805,2]
[330248064,1719207035361,-150.0,0.00021806,2]
[330248065,1719207035371,-778.46194245,0.00021807,2]
[330248066,1719207035381,-778.46194245,0.0002181,2]
[330248067,1719207035391,-203.93691935,0.00021811,2]
[330248068,1719207035401,-778.46194245,0.00021812,2]
[330248069,1719207035411,-2079.28176431,0.00021814,2]
[330248070,1719207035420,-778.46194245,0.00021815,2]
[330248071,1719207035430,-16827.3594,0.00021817,2]
[330248072,1719207035441,-10000.0,0.00021817,2]
[330248073,1719207035451,-440.1564,0.00021817,2]
[330248074,1719207035461,-175.62575419,0.00021817,2]
[330248075,1719207035471,-778.46194245,0.00021817,2]
[330248076,1719207035481,-174.61417244,0.00021817,2]
[330248077,1719207035491,-150.0,0.00021818,2]
[330248078,1719207035501,-204.26672233,0.00021818,2]
[330248079,1719207035511,-150.0,0.00021822,2]
[330248080,1719207035521,-150.0,0.00021833,2]
[330248081,1719207035531,-150.0,0.00021835,2]
[330248082,1719207035541,-150.0,0.00021836,2]
[330248083,1719207035551,-150.0,0.00021838,2]
[330248084,1719207035561,-150.0,0.00021839,2]
[330248085,1719207035570,-150.0,0.00021842,2]
[330248086,1719207035580,-150.0,0.00021846,2]
[330248087,1719207035590,-150.0,0.00021851,2]
[330248088,1719207035600,-150.0,0.00021854,2]
[330248089,1719207035609,-150.0,0.00021854,2]
[330248090,1719207035619,-150.0,0.00021856,2]
[330248091,1719207035629,-150.0,0.00021866,2]
[330248092,1719207035638,-311.15090226,0.00021869,2]
[330248093,1719207035648,-455267.025573,0.0002187,2]
[330248094,1719207035658,-150.0,0.0002187,2]
[330248095,1719207035668,-150.0,0.00021875,2]
[330248096,1719207035678,-150.0,0.00021877,2]
[330248097,1719207035689,-2198.85723835,0.00021879,2]
[330248098,1719207035701,-450.15761108,0.00021879,2]
[330248099,1719207035711,-253.90432169,0.00021879,2]
[330248100,1719207035720,-300.0,0.00021879,2]
[330248101,1719207035730,-266.14476368,0.0002188,2]
[330248102,1719207035740,-474.39862373,0.0002188,2]
[330248103,1719207035749,-1000.0,0.0002188,2]
[330248104,1719207035758,-276744.941374,0.0002188,2]
[330248105,1719207035771,-672.3424,0.0002188,2]
[330248106,1719207035783,-628.13751,0.0002188,2]
[330248107,1719207035796,-500.77266238,0.0002188,2]
[330248108,1719207035808,-931.74688155,0.0002188,2]
[330248109,1719207035820,-2522.06617273,0.0002188,2]
[330248110,1719207035831,-7384.92556584,0.0002188,2]
[330248111,1719207035843,-1515.659172,0.0002188,2]
[330248143,1719207038323,-1973.84237263,0.00021753,2]
[330248146,1719207038335,-438.29,0.00021753,2]
[330248148,1719207038347,-820.42738337,0.00021753,2]
[330248150,1719207038357,-155.0,0.0002185,2]
[330248151,1719207038367,-10852.37161413,0.0002188,7]
[330248152,1719207038380,-5107.21732208,0.0002188,7]
[330248153,1719207038392,-648.10177974,0.0002188,7]
[330248154,1719207038405,-31318.50000004,0.0002188,7]
[330248155,1719207038417,-8139.43099432,0.0002188,7]
[330248156,1719207038429,-1425.25188922,0.0002188,7]
[330248157,1719207038442,-356.03314222,0.0002188,7]
[330248158,1719207038454,-1765.0,0.0002188,7]
[330248159,1719207038467,-2506.77543946,0.0002188,7]
[330248160,1719207038479,-7969.17193469,0.0002188,7]
[330248161,1719207038492,-3386.27530717,0.0002188,7]
[330248162,1719207038504,-2107.62515821,0.0002188,7]
[330248163,1719207038516,-539.66621978,0.0002188,7]
[330248164,1719207038556,1164.601366,0.00014834,2]
[330248165,1719207038606,-432.68167204,0.0002188,7]
[330248166,1719207038619,-1454.24510192,0.0002188,7]
[330248167,1719207038631,-318.60360543,0.0002188,7]
[330248168,1719207038644,-27447.11317172,0.0002188,7]
[330248169,1719207038655,-313.27,0.0002188,7]
[330248170,1719207038667,-853.08727691,0.0002188,7]
[330248171,1719207038679,-5751.94436489,0.0002188,7]
[330248172,1719207038692,-7214.73959698,0.0002188,7]
[330248173,1719207038704,-14201.0553162,0.0002188,7]
[330248174,1719207038716,-1876.900965,0.0002188,7]
[330248175,1719207038728,-413.27020903,0.0002188,7]
[330248176,1719207038740,-2623.41555,0.0002188,7]
[330248177,1719207038752,-7047.4497525,0.0002188,7]
[330248178,1719207038813,1164.601366,0.0001502,2]
[330248458,1719207044019,-1088.3299892,0.00015205,2]
[330248463,1719207044031,-76.2713768,0.00015205,2]
[330248467,1719207044040,-1164.601366,0.0001539,2]
[330248470,1719207044049,-1164.601366,0.00015576,2]
[330248474,1719207044059,-373.997,0.00018844,2]
[330248476,1719207044067,-3232.559756,0.0002177,2]
[330248478,1719207044076,-331587.9691272,0.0002188,7]
[330248480,1719207044087,-1047.95854878,0.0002188,7]
[330248481,1719207044098,-300.0,0.0002188,7]
[330248482,1719207044109,-461.81999999,0.0002188,7]
[330248483,1719207044120,-402306.75167202,0.0002188,7]
[330248484,1719207044131,-147170.00444674,0.0002188,7]
[330248485,1719207044140,-211002.36995584,0.0002188,2]
[330248486,1719207044151,-337.374,0.0002188,2]
[330248487,1719207044263,-9722.32684016,0.0002188,2]
[330248488,1719207044276,-385.2506525,0.0002188,2]
[330248489,1719207044287,-2191.00527938,0.0002188,2]
[330248490,1719207044301,-4455.31022871,0.0002188,2]
[330248493,1719207044312,-19128.54788946,0.0002188,2]
[330248495,1719207044323,-204206.6491607,0.0002188,2]
[330248497,1719207044335,-1487.92434299,0.0002188,2]
[330248499,1719207044346,-387.72733961,0.0002188,2]
[330248501,1719207044357,-51994.79942404,0.0002188,2]
[330248504,1719207044368,-1496.48262195,0.0002188,2]
[330248506,1719207044379,-1191.88699385,0.0002188,2]
[330248508,1719207044391,-3258.19472346,0.0002188,2]
[330248510,1719207044401,-515.5928677,0.0002188,2]
[330248512,1719207044412,-433.65476328,0.0002188,2]
[330248514,1719207044423,-358.8200025,0.0002188,2]
[330248517,1719207044435,-12529.8,0.0002188,2]
[330248526,1719207044525,-650.06191534,0.0002188,2]
[330248527,1719207044537,-11478.26866453,0.0002188,2]
[330248528,1719207044549,-9417.0797708,0.0002188,2]
[330248529,1719207044560,-170976.81831178,0.0002188,2]
[330248530,1719207044570,-20266.65004122,0.0002188,2]
[330248531,1719207044581,-9894.76560632,0.0002188,2]
[330248533,1719207044592,-6280.06578001,0.0002188,2]
[330248535,1719207044602,-1226.3044423,0.0002188,2]
[330248537,1719207044613,-549.80271798,0.0002188,2]
[330248538,1719207044624,-2658.97000642,0.0002188,2]
[330248539,1719207044635,-6274.5,0.0002188,2]
[330248540,1719207044647,-338.79383807,0.0002188,2]
[330248541,1719207044657,-3093.566778,0.0002188,2]
[330248542,1719207044668,-685.34625858,0.0002188,2]
[330248543,1719207044679,-942.00315532,0.0002188,2]
[330248560,1719207048213,-166.13214998,0.0002187,2]
[330248561,1719207048225,-170.86785002,0.0002187,3]
[330248562,1719207048370,-54.65214998,0.0002187,3]
[330248563,1719207048380,-1633.72285002,0.0002188,2]
[330248564,1719207048391,-1566.675,0.0002188,2]
[330248565,1719207048403,-2346.445475,0.0002188,2]
[330248566,1719207048415,-2072.0775603,0.0002188,2]
[330248567,1719207048426,-967.0,0.0002188,2]
[330248568,1719207048437,-644.05,0.0002188,2]
[330248569,1719207048453,-11227.14581505,0.0002188,2]
[330248570,1719207048465,-769.05650803,0.0002188,2]
[330248571,1719207048476,-417.50900005,0.0002188,2]
[330248572,1719207048488,-278.97054483,0.0002188,2]
[330248573,1719207048500,-544.68072996,0.0002188,2]
[330248574,1719207048512,-295.12565298,0.0002188,2]
[330248575,1719207048523,-501.50580398,0.0002188,2]
[330248576,1719207048535,-605.50432414,0.0002188,2]
[330248577,1719207048550,-544.45108249,0.0002188,2]
[330248578,1719207048562,-1900.443,0.0002188,2]
[330248579,1719207048573,-894.1832326,0.0002188,2]
[330248580,1719207048585,-2089.86470127,0.0002188,2]
[330248581,1719207048625,-6037.72443787,0.0002188,2]
[330248582,1719207048636,-13413.10303866,0.0002188,2]
[330248583,1719207048648,-9670.89276934,0.0002188,2]
[330248584,1719207048660,-107683.40095562,0.0002188,2]
[330248585,1719207048672,-771.12580275,0.0002188,2]
[330248586,1719207194439,203.71755,0.00025814,120]
[330248587,1719207196683,1000.0,0.00025814,120]
[330248589,1719207224059,50810.797268,0.00014,2]
[330248590,1719207270313,150.5,0.0001399,30]
[330248591,1719207270875,150.5,0.0001398,30]
[330248592,1719207271482,150.5,0.0001397,30]
[330248593,1719207271976,150.5,0.0001399,30]
[330248594,1719207272467,150.5,0.0001398,30]
[330248595,1719207273312,246.77,0.0001397,30]
[330248596,1719207347563,242.76,0.00024998,120]
[330248597,1719207433709,168.35,0.00018849,30]
[330248598,1719207537474,-540.5516597,0.0001389,2]
[330248599,1719207537501,-540.55165969,0.00013895,2]
[330248600,1719207537529,-540.55165969,0.000139,2]
[330248601,1719207537714,-187.93,0.0001399,3]
[330248602,1719207537744,-563.82,0.0001399,3]
[330248603,1719207537775,-50766.59502092,0.00014,2]
[330248608,1719207864963,157.062411,0.00025,73]
[330249372,1719208233742,-179.61027696,0.00013599,2]
[330249374,1719208233752,-600.0,0.000136,4]
[330249376,1719208233763,-156.13682179,0.00013699,2]
[330249378,1719208233773,-1300.0,0.000137,5]
[330249381,1719208233782,-1900.0,0.000138,5]
[330249383,1719208233791,-963.19220126,0.000138,2]
[330249393,1719208234102,-13096.32339874,0.000138,2]
[330249394,1719208234112,-150.0,0.00013863,2]
[330249395,1719208234123,-544.2029,0.000139,2]
[330249396,1719208234132,-2600.0,0.000139,5]
[330249397,1719208234142,-747.34183284,0.000139,2]
[330249398,1719208234151,-168.68431454,0.000139,2]
[330249399,1719208234161,-465.35157841,0.000139,2]
[330249400,1719208234170,-7820.04680101,0.000139,2]
[330249401,1719208234180,-314.21509619,0.000139,2]
[330249402,1719208234189,-150.0,0.00013989,2]
[330249403,1719208234199,-13504.3976117,0.0001399,2]
[330249404,1719208234208,-190.51565574,0.0001399,2]
[330249405,1719208234217,-375.86,0.0001399,3]
[330249406,1719208234227,-250.0,0.00013991,2]
[330249407,1719208234236,-1798.48,0.00013991,2]
[330249408,1719208234246,-10703.13706405,0.00013999,2]
[330249409,1719208234255,-87116.18739982,0.00014,2]
[330249410,1719208234267,-1094.5119612,0.00014,2]
[330249411,1719208234279,-93840.57072965,0.00014,2]
[330249412,1719208234290,-938.953015,0.00014,2]
[330249413,1719208234302,-1657.86901105,0.00014,2]
[330249427,1719208239627,-250487.9999999,0.00014,2]
[330249430,1719208239640,-413.10736961,0.00014,2]
[330249434,1719208239970,-8020.43317819,0.00014,2]
[330249437,1719208239983,-4003.62304756,0.00014,2]
[330249439,1719208239996,-1447075.9697764,0.00014,2]
[330249441,1719208240009,-852725.79332483,0.00014,2]
[330249443,1719208240020,-40343.616,0.00014,2]
[330249445,1719208240031,-166.81,0.00014068,2]
[330249447,1719208240040,-7161.67,0.0001424,2]
[330249449,1719208240051,-250.0,0.00014367,2]
[330249451,1719208240061,-465.35157834,0.00014776,2]
[330249453,1719208240076,-7820.04680094,0.00014776,2]
[330249455,1719208240086,-465.840546,0.00014834,2]
[330249457,1719208240096,-499.99,0.00014834,2]
[330249459,1719208240106,-2105.54165441,0.00014837,2]
[330249461,1719208240116,-465.840546,0.0001502,2]
[330249463,1719208240126,-747.34183282,0.00015026,2]
[330249465,1719208240135,-465.840546,0.00015205,2]
[330249467,1719208240145,-175.62575415,0.00015237,2]
[330249469,1719208240155,-434.48,0.00015319,2]
[330249471,1719208240165,-27967.17,0.0001536,2]
[330249473,1719208240175,-465.840546,0.0001539,2]
[330249476,1719208240186,-291.30212659,0.00015467,2]
[330249477,1719208240196,-2105.54165438,0.00015468,2]
[330249479,1719208240206,-532.71676313,0.00015478,2]
[330249481,1719208240217,-465.840546,0.00015576,2]
[330249483,1719208240227,-465.35157834,0.00015651,2]
[330249485,1719208240237,-7820.04680094,0.00015651,2]
[330249487,1719208240247,-307.46,0.00015875,2]
[330249489,1719208240258,-531.37,0.00016098,2]
[330249492,1719208240269,-2105.54165438,0.00016099,2]
[330249494,1719208240279,-205.79,0.00016124,2]
[330249496,1719208240290,-747.34183282,0.00016151,2]
[330249498,1719208240301,-465.35157834,0.00016527,2]
[330249500,1719208240312,-7820.04680094,0.00016527,2]
[330249502,1719208240327,-178.69,0.00016542,2]
[330249504,1719208240337,-339.34174154,0.00016552,2]
[330249506,1719208240348,-2632.3,0.00016553,2]
[330249508,1719208240358,-500.0,0.00016595,2]
[330249510,1719208240368,-155.76,0.00016687,2]
[330249512,1719208240378,-589.74225262,0.0001671,2]
[330249514,1719208240388,-2000.0,0.00016711,3]
[330249517,1719208240398,-155.0,0.00016711,2]
[330249519,1719208240408,-523.50513825,0.0001673,2]
[330249521,1719208240418,-2105.54165438,0.00016731,2]
[330249523,1719208240429,-222.34,0.00016746,2]
[330249525,1719208240439,-1000.0,0.00017188,2]
[330249527,1719208240450,-747.34183282,0.00017277,2]
[330249529,1719208240460,-2105.54165438,0.00017362,2]
[330249531,1719208240471,-465.35157834,0.00017402,2]
[330249533,1719208240481,-7820.04680094,0.00017402,2]
[330249535,1719208240492,-434.48,0.00017583,2]
[330249537,1719208240502,-2105.54165438,0.00017993,2]
[330249539,1719208240512,-205.79,0.0001814,2]
[330249541,1719208240522,-465.35157834,0.00018278,2]
[330249543,1719208240533,-7820.04680094,0.00018278,2]
[330249545,1719208240544,-747.34183282,0.00018403,2]
[330249546,1719208240556,-2105.54165438,0.00018624,2]
[330249547,1719208240573,-48609.19896463,0.00019,2]
[330249548,1719208240584,-465.35157834,0.00019153,2]
[330249549,1719208240594,-7820.04680094,0.00019153,2]
[330249550,1719208240605,-250.0,0.00019178,2]
[330249551,1719208240616,-807.925,0.00019244,2]
[330249552,1719208240626,-2105.54165438,0.00019255,2]
[330249553,1719208240636,-1000.0,0.00019337,2]
[330249554,1719208240647,-300.0,0.00019527,2]
[330249555,1719208240660,-747.34183282,0.00019529,2]
[330249556,1719208240672,-300.0,0.00019599,2]
[330249557,1719208240682,-414.99873524,0.00019799,2]
[330249558,1719208240692,-311.66,0.000198,2]
[330249559,1719208240702,-1004.36,0.000198,2]
[330249560,1719208240713,-434.48,0.00019847,2]
[330249561,1719208240723,-2105.54165438,0.00019886,2]
[330249562,1719208240734,-3300.0,0.000199,7]
[330249563,1719208240744,-242.76,0.00019998,2]
[330249564,1719208240754,-177.43871395,0.0002,2]
[330249565,1719208240764,-190.25705446,0.0002,2]
[330249566,1719208240774,-235.89474152,0.0002,2]
[330249567,1719208240784,-465.35157834,0.00020029,2]
[330249568,1719208240794,-7820.04680094,0.00020029,2]
[330249569,1719208240804,-205.79,0.00020155,2]
[330249570,1719208240815,-1000.0,0.00020344,2]
[330249571,1719208240827,-4206.0,0.000204,2]
[330249572,1719208240838,-2105.54165438,0.00020518,2]
[330249573,1719208240849,-152.0,0.00020567,3]
[330249574,1719208240860,-167.84,0.00020604,2]
[330249575,1719208240870,-747.34183282,0.00020654,2]
[330249576,1719208240880,-4000.0,0.0002078,2]
[330249577,1719208240892,-300.0,0.00020799,2]
[330249578,1719208240902,-419673.421755,0.000208,2]
[330249579,1719208240912,-302.97219613,0.00020899,2]
[330249580,1719208240923,-174.61417244,0.000209,2]
[330249581,1719208240933,-465.35157834,0.00020904,2]
[330249582,1719208240944,-7820.04680094,0.00020904,2]
[330249583,1719208240954,-1004.36,0.00020955,2]
[330249584,1719208240965,-1250.0,0.00021,2]
[330249585,1719208240975,-604.0,0.00021,7]
[330249586,1719208240986,-150.85,0.00021096,2]
[330249587,1719208240997,-158.33,0.00021096,2]
[330249588,1719208241008,-166.82,0.00021096,2]
[330249589,1719208241019,-152.42,0.00021096,2]
[330249590,1719208241030,-2105.54165438,0.00021149,2]
[330249591,1719208241040,-24688.9497573,0.00021188,2]
[330249592,1719208241050,-300.0,0.00021369,2]
[330249593,1719208241061,-151.0,0.00021419,2]
[330249594,1719208241074,-418.28304425,0.00021449,2]
[330249595,1719208241084,-29009.29,0.00021463,6]
[330249596,1719208241094,-3309.36,0.00021464,6]
[330249597,1719208241105,-381.5220095,0.00021478,2]
[330249598,1719208241116,-381.5220095,0.00021478,2]
[330249599,1719208241126,-1000.0,0.00021485,2]
[330249600,1719208241137,-600.0,0.000215,7]
[330249601,1719208241147,-380.82560684,0.00021555,2]
[330249602,1719208241158,-955.85753929,0.00021599,2]
[330249603,1719208241169,-600.0,0.000216,7]
[330249604,1719208241180,-497.8815,0.000216,2]
[330249605,1719208241190,-756.7014,0.000216,2]
[330249606,1719208241201,-154.78,0.00021644,2]
[330249607,1719208241212,-359.83,0.00021644,2]
[330249608,1719208241222,-7621.92635421,0.0002168,2]
[330249609,1719208241232,-303.67444109,0.00021688,2]
[330249610,1719208241244,-1757.44036792,0.00021689,2]
[330249611,1719208241254,-155.0,0.00021699,2]
[330249612,1719208241265,-155.0,0.00021699,2]
[330249613,1719208241275,-600.0,0.000217,7]
[330249614,1719208241286,-39422.7137,0.000217,2]
[330249615,1719208241296,-7410.25142495,0.000217,2]
[330249616,1719208241311,-408.7826365,0.000217,2]
[330249623,1719208241329,-6250.51679468,0.000217,2]
[330249624,1719208241720,-691.31999944,0.000217,2]
[330249625,1719208241732,-813.74651822,0.000217,2]
[330249626,1719208241743,-1103.8323,0.000217,2]
[330249627,1719208242040,-427.29352668,0.000217,2]
[330249628,1719208242051,-3288.83314401,0.000217,2]
[330249629,1719208242063,-298.31412405,0.000217,2]
[330249630,1719208242078,-5442.56114627,0.000217,2]
[330249631,1719208242090,-174455.5258852,0.000217,2]
[330249632,1719208242100,-17476.9083,0.000217,2]
[330249633,1719208242110,-6687.7522,0.000217,2]
[330249634,1719208242120,-3047.31,0.000217,2]
[330249635,1719208242130,-7124.1133,0.000217,2]
[330249636,1719208242140,-265.5702535,0.00021704,2]
[330249637,1719208242149,-158.86009896,0.00021704,2]
[330249638,1719208242159,-326.82157281,0.00021704,2]
[330249639,1719208242169,-155.20357904,0.00021706,2]
[330249640,1719208242179,-300.0,0.00021715,2]
[330249641,1719208242188,-412.61839352,0.00021716,2]
[330249642,1719208242198,-59035.12271046,0.00021717,2]
[330249643,1719208242210,-11380.53075875,0.00021717,2]
[330249644,1719208242220,-1269.62890364,0.00021734,2]
[330249645,1719208242230,-866.64783494,0.00021734,2]
[330249646,1719208242240,-500.0,0.00021741,2]
[330249647,1719208242249,-500.0,0.00021742,2]
[330249648,1719208242259,-200.0,0.00021742,2]
[330249649,1719208242269,-5658.0354,0.0002178,2]
[330249650,1719208242279,-10000.0,0.0002178,2]
[330249651,1719208242288,-1000.0,0.0002178,2]
[330249652,1719208242298,-2105.54165438,0.0002178,2]
[330249653,1719208242307,-747.34183282,0.0002178,2]
[330249654,1719208242317,-465.35157834,0.0002178,2]
[330249655,1719208242329,-7820.04680094,0.0002178,2]
[330249656,1719208242339,-314.21509618,0.0002178,2]
[330249657,1719208242348,-962.52376031,0.00021799,2]
[330249658,1719208242358,-600.0,0.000218,7]
[330249659,1719208242368,-660.33561149,0.00021804,2]
[330249660,1719208242377,-680.0,0.00021805,2]
[330249661,1719208242387,-3106.94505996,0.00021816,2]
[330249662,1719208242397,-187.96812151,0.0002185,2]
[330249663,1719208242406,-715.71837698,0.0002185,2]
[330249664,1719208242416,-5000.0,0.0002185,2]
[330249665,1719208242426,-475.10495739,0.00021851,2]
[330249666,1719208242435,-491.61691634,0.00021851,2]
[330249667,1719208242444,-7436.15892644,0.00021851,2]
[330249668,1719208242454,-475.10495739,0.00021851,2]
[330249669,1719208242463,-2883.6533784,0.00021851,2]
[330249670,1719208242472,-155.0,0.00021851,2]
[330249671,1719208242481,-7436.15892644,0.00021851,2]
[330249672,1719208242491,-715.71837698,0.00021852,2]
[330249673,1719208242500,-4454.52980697,0.00021852,2]
[330249674,1719208242510,-1493.37730779,0.00021852,2]
[330249675,1719208242519,-155.0,0.00021853,2]
[330249676,1719208242529,-5594.31883355,0.00021853,2]
[330249677,1719208242538,-543.96475932,0.00021853,2]
[330249678,1719208242547,-5594.31883355,0.00021853,2]